[Event "Live Chess"]
[Site "Chess.com"]
[Date "2021.05.21"]
[Round "2"]
[White "ecwinslow"]
[Black "rimus11"]
[Result "1-0"]
[CurrentPosition "3q2k1/1p2RQpp/2b1r3/p1P3P1/3P1P2/3B3P/P6K/8 b - -"]
[Timezone "UTC"]
[ECO "B14"]
[ECOUrl "https://www.chess.com/openings/Caro-Kann-Defense-Panov-Attack...5.Nc3-e6-6.Nf3-Bb4"]
[UTCDate "2021.05.21"]
[UTCTime "01:30:56"]
[WhiteElo "2278"]
[BlackElo "1513"]
[TimeControl "3600+5"]
[Termination "ecwinslow won on time"]
[StartTime "01:30:56"]
[EndDate "2021.05.21"]
[EndTime "03:24:42"]
[Link "https://www.chess.com/game/live/15299569059"]

1. e4 {[%clk 0:59:58.5]} 1... c6 {[%clk 0:58:35.9]} 2. d4 {[%clk 0:59:57.3]} 2... d5 {[%clk 0:58:37.1]} 3. exd5 {[%clk 0:59:48.2]} 3... cxd5 {[%clk 0:58:38.1]} 4. c4 {[%clk 0:59:51.4]} 4... Nf6 {[%clk 0:58:20.9]} 5. Nc3 {[%clk 0:59:53.9]} 5... e6 {[%clk 0:57:50.3]} 6. Nf3 {[%clk 0:59:56.4]} 6... Bb4 {[%clk 0:57:02.9]} 7. Bd3 {[%clk 0:56:50.8]} 7... Bxc3+ {[%clk 0:57:02.5]} 8. bxc3 {[%clk 0:56:53.7]} 8... O-O {[%clk 0:56:52.6]} 9. O-O {[%clk 0:56:45.8]} 9... Bd7 {[%clk 0:55:38.9]} 10. Bg5 {[%clk 0:55:27.6]} 10... Bc6 {[%clk 0:55:37.1]} 11. Ne5 {[%clk 0:55:07.5]} 11... Nbd7 {[%clk 0:51:43.5]} 12. Nxd7 {[%clk 0:54:40.8]} 12... Bxd7 {[%clk 0:51:20.8]} 13. cxd5 {[%clk 0:54:25]} 13... exd5 {[%clk 0:51:13]} 14. Qf3 {[%clk 0:54:20.4]} 14... Bc6 {[%clk 0:51:08.1]} 15. Rfe1 {[%clk 0:52:07.7]} 15... Qd6 {[%clk 0:50:55.9]} 16. Bf4 {[%clk 0:43:15.9]} 16... Qd7 {[%clk 0:49:23.5]} 17. h3 {[%clk 0:41:57.2]} 17... Ne4 {[%clk 0:48:17.7]} 18. c4 {[%clk 0:40:03.7]} 18... f5 {[%clk 0:47:44.7]} 19. c5 {[%clk 0:39:32.1]} 19... Rf6 {[%clk 0:43:48.8]} 20. Be5 {[%clk 0:37:53.1]} 20... Rg6 {[%clk 0:42:30.2]} 21. Qf4 {[%clk 0:37:12.3]} 21... Rf8 {[%clk 0:33:42.5]} 22. f3 {[%clk 0:34:58.5]} 22... Ng5 {[%clk 0:28:34.4]} 23. Kh2 {[%clk 0:34:44.8]} 23... Ne6 {[%clk 0:22:47.7]} 24. Qd2 {[%clk 0:34:39.6]} 24... Qf7 {[%clk 0:20:29.4]} 25. f4 {[%clk 0:32:31.4]} 25... Rh6 {[%clk 0:20:04.2]} 26. Qf2 {[%clk 0:28:47.6]} 26... Qd7 {[%clk 0:17:26]} 27. Rab1 {[%clk 0:28:32.3]} 27... Nc7 {[%clk 0:15:28]} 28. Re3 {[%clk 0:22:50.3]} 28... Ne8 {[%clk 0:10:40.8]} 29. Qc2 {[%clk 0:21:04.8]} 29... Rh5 {[%clk 0:10:21.2]} 30. Rbe1 {[%clk 0:20:15]} 30... Nf6 {[%clk 0:10:09.2]} 31. Bxf6 {[%clk 0:20:08.3]} 31... Rxf6 {[%clk 0:08:55.7]} 32. Re7 {[%clk 0:19:14.6]} 32... Qc8 {[%clk 0:08:33.1]} 33. Qe2 {[%clk 0:18:04]} 33... Rhh6 {[%clk 0:06:39.5]} 34. Qe5 {[%clk 0:17:12.1]} 34... a5 {[%clk 0:05:24.4]} 35. Re3 {[%clk 0:17:06.3]} 35... Rhg6 {[%clk 0:04:08.9]} 36. g4 {[%clk 0:15:37.3]} 36... Bd7 {[%clk 0:02:35.6]} 37. g5 {[%clk 0:14:42.8]} 37... Re6 {[%clk 0:02:06.1]} 38. Qxd5 {[%clk 0:14:19.7]} 38... Bc6 {[%clk 0:01:29.2]} 39. Qxf5 {[%clk 0:13:55.7]} 39... Qd8 {[%clk 0:01:03.8]} 40. R3xe6 {[%clk 0:13:18.7]} 40... Rxe6 {[%clk 0:00:13.3]} 41. Qf7+ {[%clk 0:13:19.7]} 1-0

[Event "Live Chess"]
[Site "Chess.com"]
[Date "2021.05.21"]
[Round "2"]
[White "aanval22"]
[Black "FlightsOfFancy"]
[Result "0-1"]
[CurrentPosition "4k3/5p2/4p2p/pp1b4/2r5/K1bR4/P1P3PP/6R1 w k -"]
[Timezone "UTC"]
[ECO "B56"]
[ECOUrl "https://www.chess.com/openings/Sicilian-Defense-Open-Classical-Variation"]
[UTCDate "2021.05.21"]
[UTCTime "01:31:00"]
[WhiteElo "1288"]
[BlackElo "2155"]
[TimeControl "3600+5"]
[Termination "FlightsOfFancy won by resignation"]
[StartTime "01:31:00"]
[EndDate "2021.05.21"]
[EndTime "02:23:50"]
[Link "https://www.chess.com/game/live/15299569457"]

1. e4 {[%clk 1:00:00.1]} 1... c5 {[%clk 0:59:59.5]} 2. Nf3 {[%clk 1:00:02.8]} 2... Nc6 {[%clk 1:00:03.1]} 3. d4 {[%clk 1:00:02.8]} 3... cxd4 {[%clk 1:00:06.6]} 4. Nxd4 {[%clk 1:00:06.5]} 4... Nf6 {[%clk 1:00:10.2]} 5. Nc3 {[%clk 0:59:59.9]} 5... d6 {[%clk 1:00:13.5]} 6. Bg5 {[%clk 1:00:01.2]} 6... e6 {[%clk 1:00:14]} 7. Qd2 {[%clk 0:59:56.1]} 7... a6 {[%clk 1:00:14.6]} 8. O-O-O {[%clk 0:59:39.8]} 8... Bd7 {[%clk 1:00:17.3]} 9. f4 {[%clk 0:59:04.6]} 9... b5 {[%clk 1:00:18]} 10. e5 {[%clk 0:55:39.9]} 10... dxe5 {[%clk 0:59:52.5]} 11. Nxc6 {[%clk 0:55:33.2]} 11... Bxc6 {[%clk 0:59:52]} 12. Qe1 {[%clk 0:52:32.4]} 12... Qc7 {[%clk 0:58:14.3]} 13. fxe5 {[%clk 0:52:28.5]} 13... Nd7 {[%clk 0:56:57.2]} 14. Qg3 {[%clk 0:46:26.9]} 14... Rc8 {[%clk 0:56:03.5]} 15. Bd3 {[%clk 0:45:34.4]} 15... h6 {[%clk 0:52:23.4]} 16. Be3 {[%clk 0:43:29.2]} 16... Nxe5 {[%clk 0:49:49.2]} 17. Bf4 {[%clk 0:43:18.9]} 17... Bd6 {[%clk 0:49:16]} 18. Qxg7 {[%clk 0:42:19.2]} 18... Nxd3+ {[%clk 0:48:32.4]} 19. Kb1 {[%clk 0:42:19.7]} 19... Be5 {[%clk 0:42:13.8]} 20. Qxh8+ {[%clk 0:41:30.1]} 20... Bxh8 {[%clk 0:42:12.9]} 21. Bxc7 {[%clk 0:41:33]} 21... Nxb2 {[%clk 0:38:52.8]} 22. Kxb2 {[%clk 0:41:02.6]} 22... Rxc7 {[%clk 0:38:51.3]} 23. Kb3 {[%clk 0:41:01.6]} 23... Bxc3 {[%clk 0:35:31.3]} 24. Rhg1 {[%clk 0:40:26.1]} 24... Bd5+ {[%clk 0:32:53]} 25. Ka3 {[%clk 0:40:26.9]} 25... a5 {[%clk 0:32:08.9]} 26. Rd3 {[%clk 0:40:07.7]} 26... Rc4 {[%clk 0:31:51.3]} 0-1

[Event "Live Chess"]
[Site "Chess.com"]
[Date "2021.05.21"]
[Round "2"]
[White "Charvii"]
[Black "nathanf314"]
[Result "0-1"]
[CurrentPosition "2r3k1/6pp/1b3p2/pP6/P4r2/3p2NP/6PK/3R4 w - -"]
[Timezone "UTC"]
[ECO "B32"]
[ECOUrl "https://www.chess.com/openings/Sicilian-Defense-Open-Lowenthal-Variation"]
[UTCDate "2021.05.21"]
[UTCTime "01:31:03"]
[WhiteElo "1032"]
[BlackElo "2004"]
[TimeControl "3600+5"]
[Termination "nathanf314 won by resignation"]
[StartTime "01:31:03"]
[EndDate "2021.05.21"]
[EndTime "02:07:18"]
[Link "https://www.chess.com/game/live/15299569713"]

1. e4 {[%clk 1:00:04.1]} 1... c5 {[%clk 1:00:02.1]} 2. Nf3 {[%clk 1:00:05.6]} 2... Nc6 {[%clk 0:59:58.1]} 3. d4 {[%clk 1:00:07]} 3... cxd4 {[%clk 1:00:02.4]} 4. Nxd4 {[%clk 1:00:06.7]} 4... e5 {[%clk 0:59:54.8]} 5. Nxc6 {[%clk 0:59:46.3]} 5... bxc6 {[%clk 0:59:59.7]} 6. Bc4 {[%clk 0:59:44]} 6... Nf6 {[%clk 0:59:57.7]} 7. Nc3 {[%clk 0:59:40.8]} 7... Bb4 {[%clk 0:59:25.2]} 8. Qd3 {[%clk 0:58:11.8]} 8... d5 {[%clk 0:58:25.3]} 9. exd5 {[%clk 0:57:56.1]} 9... cxd5 {[%clk 0:58:20]} 10. Bb5+ {[%clk 0:57:50]} 10... Bd7 {[%clk 0:58:18.5]} 11. Bxd7+ {[%clk 0:57:49.9]} 11... Qxd7 {[%clk 0:58:23.4]} 12. O-O {[%clk 0:57:24.9]} 12... O-O {[%clk 0:58:07.9]} 13. Qg3 {[%clk 0:56:34.6]} 13... Qf5 {[%clk 0:52:46.7]} 14. Nd1 {[%clk 0:54:37.3]} 14... Rfe8 {[%clk 0:51:22.7]} 15. Ne3 {[%clk 0:54:23]} 15... Qe6 {[%clk 0:50:40.9]} 16. c3 {[%clk 0:53:55.1]} 16... Bc5 {[%clk 0:49:38.5]} 17. b4 {[%clk 0:53:27.8]} 17... Bb6 {[%clk 0:49:34.3]} 18. Rd1 {[%clk 0:52:35.1]} 18... d4 {[%clk 0:48:22.7]} 19. cxd4 {[%clk 0:52:23.5]} 19... exd4 {[%clk 0:48:27.6]} 20. Nf1 {[%clk 0:52:11.8]} 20... Ne4 {[%clk 0:47:52.1]} 21. Qd3 {[%clk 0:51:42.9]} 21... Nc3 {[%clk 0:46:56.2]} 22. Rd2 {[%clk 0:51:27.5]} 22... a5 {[%clk 0:46:34.6]} 23. b5 {[%clk 0:50:51.7]} 23... Rac8 {[%clk 0:45:57.6]} 24. h3 {[%clk 0:48:06.2]} 24... Ne2+ {[%clk 0:45:48.5]} 25. Rxe2 {[%clk 0:46:36.3]} 25... Qxe2 {[%clk 0:45:53.4]} 26. Qxe2 {[%clk 0:46:19.7]} 26... Rxe2 {[%clk 0:45:58.3]} 27. Bf4 {[%clk 0:45:22.5]} 27... f6 {[%clk 0:45:55.9]} 28. Ng3 {[%clk 0:45:17.3]} 28... Rb2 {[%clk 0:45:02.4]} 29. a4 {[%clk 0:45:13.5]} 29... d3 {[%clk 0:44:35.5]} 30. Rd1 {[%clk 0:44:58.5]} 30... Rxf2 {[%clk 0:44:33]} 31. Kh2 {[%clk 0:44:47.3]} 31... Rxf4 {[%clk 0:44:35.1]} 0-1

[Event "Live Chess"]
[Site "Chess.com"]
[Date "2021.05.21"]
[Round "2"]
[White "kclemens"]
[Black "2Nf31-0"]
[Result "1-0"]
[CurrentPosition "3k4/5R2/2P1p1p1/3nP1p1/3P4/5P2/5PKP/8 b - -"]
[Timezone "UTC"]
[ECO "A46"]
[ECOUrl "https://www.chess.com/openings/Indian-Game-Knights-Variation"]
[UTCDate "2021.05.21"]
[UTCTime "01:31:02"]
[WhiteElo "1997"]
[BlackElo "1008"]
[TimeControl "3600+5"]
[Termination "kclemens won by resignation"]
[StartTime "01:31:02"]
[EndDate "2021.05.21"]
[EndTime "03:05:37"]
[Link "https://www.chess.com/game/live/15299570351"]

1. Nf3 {[%clk 0:59:56.7]} 1... Nf6 {[%clk 0:59:56.7]} 2. d4 {[%clk 0:59:55.3]} 2... d5 {[%clk 0:59:56.9]} 3. c4 {[%clk 0:59:48.1]} 3... e6 {[%clk 0:59:58]} 4. Nc3 {[%clk 0:59:47.4]} 4... Be7 {[%clk 0:59:54.2]} 5. Bg5 {[%clk 0:59:38.9]} 5... O-O {[%clk 0:59:48.7]} 6. e3 {[%clk 0:59:33.7]} 6... c6 {[%clk 0:59:33.7]} 7. Bd3 {[%clk 0:58:26]} 7... Nbd7 {[%clk 0:59:24.3]} 8. O-O {[%clk 0:57:45.2]} 8... h6 {[%clk 0:59:09.1]} 9. Bh4 {[%clk 0:57:23.3]} 9... dxc4 {[%clk 0:58:28.6]} 10. Bxc4 {[%clk 0:56:34.7]} 10... Nd5 {[%clk 0:58:08.5]} 11. Bxe7 {[%clk 0:56:31.9]} 11... Qxe7 {[%clk 0:58:10.4]} 12. Ne4 {[%clk 0:55:45.4]} 12... N7f6 {[%clk 0:57:11.9]} 13. Ng3 {[%clk 0:55:06.4]} 13... b5 {[%clk 0:56:00.6]} 14. Bd3 {[%clk 0:51:04.8]} 14... Bb7 {[%clk 0:54:14.5]} 15. Qe2 {[%clk 0:49:30.1]} 15... Nd7 {[%clk 0:53:09.3]} 16. Rac1 {[%clk 0:44:24.9]} 16... Rac8 {[%clk 0:50:37.9]} 17. a3 {[%clk 0:40:43.4]} 17... a6 {[%clk 0:48:57.5]} 18. Bb1 {[%clk 0:37:20.5]} 18... c5 {[%clk 0:46:33.4]} 19. Rfe1 {[%clk 0:33:04.2]} 19... c4 {[%clk 0:44:37.9]} 20. e4 {[%clk 0:30:56.8]} 20... N5b6 {[%clk 0:42:45.8]} 21. e5 {[%clk 0:28:34.9]} 21... Nd5 {[%clk 0:40:59.7]} 22. Qc2 {[%clk 0:27:35.6]} 22... g6 {[%clk 0:40:24.1]} 23. Ne4 {[%clk 0:26:03.3]} 23... b4 {[%clk 0:38:15.5]} 24. Nd6 {[%clk 0:24:38.4]} 24... Rc7 {[%clk 0:36:58.7]} 25. axb4 {[%clk 0:23:07.5]} 25... Nxb4 {[%clk 0:36:49.5]} 26. Qd2 {[%clk 0:22:12.5]} 26... Bxf3 {[%clk 0:34:18.5]} 27. gxf3 {[%clk 0:18:52.4]} 27... Qg5+ {[%clk 0:32:40.4]} 28. Qxg5 {[%clk 0:18:48.9]} 28... hxg5 {[%clk 0:32:42.7]} 29. Ne4 {[%clk 0:18:12.3]} 29... Nb6 {[%clk 0:31:05.7]} 30. b3 {[%clk 0:17:33.4]} 30... Rd8 {[%clk 0:29:29.7]} 31. Red1 {[%clk 0:16:18.4]} 31... Rdd7 {[%clk 0:27:29.2]} 32. Nf6+ {[%clk 0:15:36.4]} 32... Kg7 {[%clk 0:27:12.7]} 33. Nxd7 {[%clk 0:15:35]} 33... Nxd7 {[%clk 0:26:56.7]} 34. Rxc4 {[%clk 0:14:14]} 34... Rxc4 {[%clk 0:26:08.5]} 35. bxc4 {[%clk 0:14:18.9]} 35... Nb6 {[%clk 0:25:53]} 36. Rc1 {[%clk 0:13:37.2]} 36... a5 {[%clk 0:24:42.3]} 37. Be4 {[%clk 0:13:24.5]} 37... Kf8 {[%clk 0:24:06.9]} 38. c5 {[%clk 0:12:27.4]} 38... N6d5 {[%clk 0:23:51.9]} 39. Bxd5 {[%clk 0:12:07.2]} 39... Nxd5 {[%clk 0:23:47.6]} 40. c6 {[%clk 0:12:02]} 40... Nc7 {[%clk 0:23:14.7]} 41. Ra1 {[%clk 0:11:45.7]} 41... Ke8 {[%clk 0:22:59.1]} 42. Rxa5 {[%clk 0:11:42.8]} 42... Ke7 {[%clk 0:22:52.6]} 43. Ra7 {[%clk 0:11:30.7]} 43... Kd8 {[%clk 0:22:50.5]} 44. Kg2 {[%clk 0:11:09.9]} 44... Nd5 {[%clk 0:22:37.9]} 45. Rxf7 {[%clk 0:10:40.5]} 1-0

[Event "Live Chess"]
[Site "Chess.com"]
[Date "2021.05.21"]
[Round "2"]
[White "BirdOrBust"]
[Black "suindu12"]
[Result "0-1"]
[CurrentPosition "2r2r1k/1p2qpp1/p3p2p/P2pbb1n/3p1P2/1P1PP3/2PN1QPP/R3R2K w - -"]
[Timezone "UTC"]
[ECO "A03"]
[ECOUrl "https://www.chess.com/openings/Birds-Opening-Dutch-Lasker-Variation"]
[UTCDate "2021.05.21"]
[UTCTime "01:31:13"]
[WhiteElo "1873"]
[BlackElo "1181"]
[TimeControl "3600+5"]
[Termination "suindu12 won by resignation"]
[StartTime "01:31:13"]
[EndDate "2021.05.21"]
[EndTime "02:17:51"]
[Link "https://www.chess.com/game/live/15299571279"]

1. f4 {[%clk 0:59:55.2]} 1... d5 {[%clk 1:00:00.3]} 2. Nf3 {[%clk 0:59:50.4]} 2... c5 {[%clk 0:59:58.4]} 3. e3 {[%clk 0:59:53]} 3... Nf6 {[%clk 0:59:57.9]} 4. b3 {[%clk 0:59:54.9]} 4... Bf5 {[%clk 0:59:47.6]} 5. Bb2 {[%clk 0:59:55.3]} 5... e6 {[%clk 0:59:41.9]} 6. Bb5+ {[%clk 0:59:54.9]} 6... Nbd7 {[%clk 0:58:30.6]} 7. O-O {[%clk 0:58:31]} 7... Be7 {[%clk 0:58:10.5]} 8. d3 {[%clk 0:58:05.1]} 8... O-O {[%clk 0:57:54.2]} 9. Bxd7 {[%clk 0:58:03.5]} 9... Qxd7 {[%clk 0:57:39]} 10. Nbd2 {[%clk 0:58:03]} 10... Rac8 {[%clk 0:56:00.8]} 11. Ne5 {[%clk 0:57:59.1]} 11... Qc7 {[%clk 0:55:52.9]} 12. Qe1 {[%clk 0:57:54.6]} 12... h6 {[%clk 0:53:46.1]} 13. Qg3 {[%clk 0:56:33.3]} 13... Kh8 {[%clk 0:51:39.8]} 14. a4 {[%clk 0:53:15.5]} 14... a6 {[%clk 0:49:28.8]} 15. a5 {[%clk 0:52:17.3]} 15... Bd6 {[%clk 0:40:05.6]} 16. Kh1 {[%clk 0:50:08.2]} 16... Qe7 {[%clk 0:38:55.8]} 17. Rfe1 {[%clk 0:47:03.5]} 17... Nh5 {[%clk 0:35:46.1]} 18. Qf2 {[%clk 0:45:37.4]} 18... Bxe5 {[%clk 0:32:28.5]} 19. Bd4 {[%clk 0:45:15.4]} 19... cxd4 {[%clk 0:31:44.2]} 0-1

[Event "Live Chess"]
[Site "Chess.com"]
[Date "2021.05.21"]
[Round "2"]
[White "maturner"]
[Black "fiddleleaf"]
[Result "1-0"]
[CurrentPosition "5n2/5kp1/3Qp3/pp5P/8/P4p2/1PP5/1K6 w - -"]
[Timezone "UTC"]
[ECO "B18"]
[ECOUrl "https://www.chess.com/openings/Caro-Kann-Defense-Classical-Variation-5.Ng3-Bg6-6.Nf3-Nd7"]
[UTCDate "2021.05.21"]
[UTCTime "01:31:12"]
[WhiteElo "1853"]
[BlackElo "1574"]
[TimeControl "3600+5"]
[Termination "maturner won by resignation"]
[StartTime "01:31:12"]
[EndDate "2021.05.21"]
[EndTime "03:34:01"]
[Link "https://www.chess.com/game/live/15299571503"]

1. e4 {[%clk 1:00:02.8]} 1... c6 {[%clk 0:59:58.3]} 2. d4 {[%clk 1:00:05.4]} 2... d5 {[%clk 1:00:01.5]} 3. Nc3 {[%clk 1:00:08.4]} 3... dxe4 {[%clk 1:00:03.3]} 4. Nxe4 {[%clk 1:00:11.5]} 4... Bf5 {[%clk 1:00:03.3]} 5. Ng3 {[%clk 1:00:14.3]} 5... Bg6 {[%clk 1:00:06.8]} 6. Nf3 {[%clk 1:00:17.2]} 6... Nd7 {[%clk 0:59:47.1]} 7. h4 {[%clk 0:59:56.9]} 7... h6 {[%clk 0:59:47.8]} 8. h5 {[%clk 0:59:59.2]} 8... Bh7 {[%clk 0:59:50.2]} 9. Bd3 {[%clk 1:00:02.6]} 9... Bxd3 {[%clk 0:59:53.9]} 10. Qxd3 {[%clk 1:00:05.9]} 10... Ngf6 {[%clk 0:59:41.7]} 11. Bd2 {[%clk 0:59:39]} 11... e6 {[%clk 0:58:58.2]} 12. O-O-O {[%clk 0:59:39.8]} 12... c5 {[%clk 0:56:56.3]} 13. Rhe1 {[%clk 0:59:06.9]} 13... Be7 {[%clk 0:53:48]} 14. Kb1 {[%clk 0:55:18.5]} 14... Qc7 {[%clk 0:46:30]} 15. Qe2 {[%clk 0:53:23]} 15... cxd4 {[%clk 0:37:52.1]} 16. Nxd4 {[%clk 0:52:49.7]} 16... Qb6 {[%clk 0:32:13.6]} 17. Ndf5 {[%clk 0:35:49.8]} 17... Ba3 {[%clk 0:28:40.2]} 18. Bc1 {[%clk 0:35:48]} 18... O-O {[%clk 0:25:56.6]} 19. Ne3 {[%clk 0:32:30.5]} 19... Bc5 {[%clk 0:22:04.5]} 20. f4 {[%clk 0:30:06.6]} 20... a5 {[%clk 0:20:12.7]} 21. Nc4 {[%clk 0:26:53.1]} 21... Qc7 {[%clk 0:17:21.7]} 22. Ne4 {[%clk 0:24:26]} 22... Be7 {[%clk 0:12:57.1]} 23. g4 {[%clk 0:21:46.9]} 23... Rfc8 {[%clk 0:08:13.9]} 24. Ncd6 {[%clk 0:21:03.3]} 24... Rd8 {[%clk 0:03:41.5]} 25. g5 {[%clk 0:19:21.4]} 25... hxg5 {[%clk 0:02:01.1]} 26. fxg5 {[%clk 0:19:00.9]} 26... Nxe4 {[%clk 0:01:18.1]} 27. Nxe4 {[%clk 0:18:18.6]} 27... Rac8 {[%clk 0:00:36.5]} 28. g6 {[%clk 0:16:37.7]} 28... f5 {[%clk 0:00:30.7]} 29. Ng5 {[%clk 0:14:28.3]} 29... Bxg5 {[%clk 0:00:17.8]} 30. Bxg5 {[%clk 0:13:44.5]} 30... Nf8 {[%clk 0:00:17.5]} 31. Bxd8 {[%clk 0:12:48.2]} 31... Rxd8 {[%clk 0:00:20.5]} 32. Rxd8 {[%clk 0:12:39.3]} 32... Qxd8 {[%clk 0:00:24.8]} 33. Rd1 {[%clk 0:11:55.4]} 33... Qc7 {[%clk 0:00:11.7]} 34. Qf3 {[%clk 0:09:32.7]} 34... Qc8 {[%clk 0:00:09.5]} 35. a3 {[%clk 0:08:57.8]} 35... b5 {[%clk 0:00:11.8]} 36. Rd6 {[%clk 0:07:05.2]} 36... Qc7 {[%clk 0:00:10.8]} 37. Qc6 {[%clk 0:06:34.9]} 37... Qb8 {[%clk 0:00:08.7]} 38. Qb6 {[%clk 0:06:21.3]} 38... Qe8 {[%clk 0:00:10.2]} 39. Rd8 {[%clk 0:06:09]} 39... Qe7 {[%clk 0:00:10.4]} 40. Qd6 {[%clk 0:06:01]} 40... Qf6 {[%clk 0:00:11]} 41. Rb8 {[%clk 0:05:36.4]} 41... f4 {[%clk 0:00:13.2]} 42. Rb7 {[%clk 0:05:10]} 42... f3 {[%clk 0:00:11.6]} 43. Rf7 {[%clk 0:04:50]} 43... Qxf7 {[%clk 0:00:07.7]} 44. gxf7+ {[%clk 0:04:46.2]} 44... Kxf7 {[%clk 0:00:10.5]} 1-0

[Event "Live Chess"]
[Site "Chess.com"]
[Date "2021.05.21"]
[Round "2"]
[White "victor6688"]
[Black "cccalboy"]
[Result "0-1"]
[CurrentPosition "4r3/p2k4/1p1b4/3p1p2/5P1P/5KP1/Pn6/8 w - -"]
[Timezone "UTC"]
[ECO "B13"]
[ECOUrl "https://www.chess.com/openings/Caro-Kann-Defense-Exchange-Variation-3...cxd5-4.Nf3"]
[UTCDate "2021.05.21"]
[UTCTime "01:31:20"]
[WhiteElo "1203"]
[BlackElo "1794"]
[TimeControl "3600+5"]
[Termination "cccalboy won by resignation"]
[StartTime "01:31:20"]
[EndDate "2021.05.21"]
[EndTime "02:39:22"]
[Link "https://www.chess.com/game/live/15299571917"]

1. e4 {[%clk 0:59:24.9]} 1... c6 {[%clk 1:00:00.4]} 2. d4 {[%clk 0:59:28.2]} 2... d5 {[%clk 1:00:02.6]} 3. exd5 {[%clk 0:59:30.7]} 3... cxd5 {[%clk 1:00:01.8]} 4. Nf3 {[%clk 0:59:28.9]} 4... Nc6 {[%clk 0:59:19.8]} 5. Bb5 {[%clk 0:59:24.4]} 5... Nf6 {[%clk 0:53:49.3]} 6. Ne5 {[%clk 0:59:12.1]} 6... Qc7 {[%clk 0:53:44.8]} 7. Bf4 {[%clk 0:58:25.4]} 7... Bd7 {[%clk 0:52:06.9]} 8. Ng6 {[%clk 0:58:14.9]} 8... Qa5+ {[%clk 0:51:53.8]} 9. Bd2 {[%clk 0:57:32.2]} 9... Qxb5 {[%clk 0:51:40.3]} 10. Nxh8 {[%clk 0:56:36.2]} 10... Qxb2 {[%clk 0:41:20]} 11. Nc3 {[%clk 0:55:44.1]} 11... Nxd4 {[%clk 0:37:33.7]} 12. O-O {[%clk 0:55:07.8]} 12... Qxc2 {[%clk 0:36:40.2]} 13. Bg5 {[%clk 0:54:16.7]} 13... Qxc3 {[%clk 0:35:13.9]} 14. Bxf6 {[%clk 0:54:11.7]} 14... exf6 {[%clk 0:27:44.1]} 15. Rc1 {[%clk 0:53:03.2]} 15... Qb4 {[%clk 0:24:16]} 16. Re1+ {[%clk 0:53:03.2]} 16... Be6 {[%clk 0:21:49.7]} 17. Qh5 {[%clk 0:52:57.5]} 17... Be7 {[%clk 0:19:36.3]} 18. Qxh7 {[%clk 0:52:41.9]} 18... Kd7 {[%clk 0:14:13.6]} 19. Qxg7 {[%clk 0:52:31]} 19... Nf5 {[%clk 0:12:53.5]} 20. Qh7 {[%clk 0:52:27.8]} 20... Qh4 {[%clk 0:11:53.8]} 21. Qxh4 {[%clk 0:50:57]} 21... Nxh4 {[%clk 0:11:57.2]} 22. Nxf7 {[%clk 0:50:57.7]} 22... Bxf7 {[%clk 0:11:57.2]} 23. Rc2 {[%clk 0:50:41.1]} 23... Bd6 {[%clk 0:11:41.3]} 24. Rb1 {[%clk 0:50:36]} 24... b6 {[%clk 0:11:34.3]} 25. g3 {[%clk 0:49:58]} 25... Bg6 {[%clk 0:11:26.3]} 26. Rcb2 {[%clk 0:49:08.9]} 26... Bxb1 {[%clk 0:11:25.6]} 27. Rxb1 {[%clk 0:48:24.6]} 27... Nf3+ {[%clk 0:11:28]} 28. Kg2 {[%clk 0:48:27.2]} 28... Ne5 {[%clk 0:11:26.5]} 29. f4 {[%clk 0:47:57.8]} 29... Nc4 {[%clk 0:11:28.3]} 30. Kf3 {[%clk 0:47:16.5]} 30... Re8 {[%clk 0:11:27.7]} 31. Rb2 {[%clk 0:47:15.8]} 31... f5 {[%clk 0:11:17.5]} 32. h4 {[%clk 0:46:52.1]} 32... Nxb2 {[%clk 0:11:19.7]} 0-1